bitfinex/quotes_SOLUSD_20241225
["timestamp","ask_amount","ask_price","bid_price","bid_amount"]
[1735132716632,0.95299379,196.76,196.71,9.93873292]
[1735132716812,0.95299379,196.76,196.72,20.0]
[1735132717000,0.95299379,196.76,196.69,9.93873292]
[1735132717206,23.776884,196.75,196.69,9.93873292]
[1735132719522,0.95306728,196.74,196.69,9.93873292]
[1735132719720,23.776884,196.75,196.72,20.0]
[1735132719917,23.776884,196.75,196.69,9.93873292]
[1735132720824,2.4992732,196.74,196.7,20.0]
[1735132722526,2.49932763,196.74,196.7,20.0]
[1735132722916,2.49932763,196.74,196.67,9.93873292]
[1735132723127,33.71561692,196.73,196.63,0.76251941]
[1735132723307,10.89198494,196.72,196.64,9.93873292]
[1735132724930,10.89198494,196.72,196.67,20.0]
[1735132728236,0.95325202,196.72,196.67,20.0]
[1735132728438,1.5462,196.74,196.69,9.93873292]
[1735132729412,1.5462,196.74,196.72,9.93873292]
[1735132729634,6.4865,196.77,196.72,9.93873292]
[1735132730738,6.4865,196.77,196.73,9.93873292]
[1735132731515,1.5774,196.79,196.73,9.93873292]
[1735132731720,6.1943,196.81,196.77,9.93873292]
[1735132734529,6.1943,196.81,196.73,20.0]
[1735132734733,6.1943,196.81,196.76,20.0]
[1735132734929,6.1943,196.81,196.78,20.0]
[1735132739449,24.72970264,196.8,196.76,20.0]
[1735132741730,23.776884,196.8,196.76,20.0]
[1735132743749,6.1943,196.81,196.76,20.0]
[1735132745053,16.13303292,196.81,196.76,20.0]
[1735132745230,23.776884,196.79,196.75,20.0]
[1735132745727,16.13303292,196.81,196.74,9.93873292]
[1735132745929,6.1943,196.81,196.74,20.0]
[1735132746152,6.1943,196.81,196.75,9.93873292]
[1735132746346,24.72971523,196.8,196.74,20.0]
[1735132746530,6.1943,196.81,196.75,9.93873292]
[1735132749726,0.95283636,196.8,196.75,9.93873292]
[1735132751356,0.95283636,196.8,196.74,20.0]
[1735132751650,6.1943,196.81,196.76,20.0]
[1735132752048,0.95282509,196.8,196.76,20.0]
[1735132752253,7.14715465,196.81,196.76,20.0]
[1735132753358,6.1943,196.81,196.76,20.0]
[1735132753663,0.95283731,196.8,196.76,20.0]
[1735132754055,23.776884,196.79,196.76,20.0]
[1735132754250,0.95295022,196.78,196.73,9.93873292]
[1735132754654,23.776884,196.79,196.73,9.93873292]
[1735132756762,0.95292097,196.78,196.73,9.93873292]
[1735132757258,24.72982577,196.79,196.73,9.93873292]
[1735132758362,23.776884,196.79,196.73,9.93873292]
[1735132759664,0.95293007,196.78,196.73,9.93873292]
[1735132760035,0.95293007,196.78,196.74,20.0]
[1735132760240,23.776884,196.77,196.74,20.0]
[1735132760544,0.95303404,196.76,196.71,9.93873292]
[1735132760748,33.71561692,196.75,196.68,42.99475792]
[1735132760958,23.776884,196.75,196.68,22.64953292]
[1735132761756,23.776884,196.75,196.7,9.93873292]
[1735132762065,1.5375,196.77,196.72,9.93873292]
[1735132764349,1.5375,196.77,196.73,20.0]
[1735132764758,1.5375,196.77,196.71,9.93873292]
[1735132768768,1.5375,196.77,196.71,40.53873292]
[1735132768974,1.5375,196.77,196.71,9.93873292]
[1735132771757,24.72992502,196.76,196.72,20.0]
[1735132771962,24.72992502,196.76,196.71,20.0]
[1735132771963,9.93873292,196.75,196.71,20.0]
[1735132772363,34.66865794,196.76,196.71,20.0]
[1735132773161,24.72992502,196.76,196.71,20.0]
[1735132775452,1.5375,196.77,196.71,29.93873292]
[1735132780479,23.776884,196.76,196.71,20.0]
[1735132780782,24.72990981,196.76,196.72,20.0]
[1735132781989,24.72990981,196.76,196.69,20.0]
[1735132782280,24.72990981,196.76,196.7,20.0]
[1735132792191,1.5375,196.77,196.7,20.0]
[1735132792602,1.5375,196.77,196.71,29.93873292]
[1735132792905,2.49049151,196.77,196.71,29.93873292]
[1735132793882,0.95303413,196.76,196.71,29.93873292]
[1735132795894,0.95303413,196.76,196.71,20.0]
[1735132796100,23.776884,196.75,196.71,20.0]
[1735132798101,1.5375,196.77,196.71,20.0]
[1735132804311,24.72987881,196.76,196.71,20.0]
[1735132804490,31.23397881,196.76,196.71,20.0]
[1735132806415,6.5041,196.76,196.71,20.0]
[1735132807211,6.5041,196.76,196.73,20.0]
[1735132809102,6.5041,196.76,196.7,9.93873292]
[1735132809297,0.95305866,196.75,196.7,9.93873292]
[1735132809514,0.95305866,196.75,196.65,7.92284843]
[1735132809515,9.93873292,196.73,196.65,7.92284843]
[1735132809812,24.73013306,196.72,196.65,17.86158135]
[1735132810213,24.73013306,196.72,196.65,9.93873292]
[1735132811315,24.73013306,196.72,196.67,20.0]
[1735132811514,11.48283292,196.71,196.64,12.7135]
[1735132811816,6.5041,196.7,196.64,22.65223292]
[1735132812016,6.5041,196.7,196.65,9.93873292]
[1735132812311,6.5041,196.7,196.66,9.93873292]
[1735132812810,1.5441,196.71,196.69,9.93873292]
[1735132812990,6.5041,196.75,196.7,9.93873292]
[1735132814191,7.45718757,196.75,196.7,9.93873292]
[1735132816816,7.45718757,196.75,196.69,20.0]
[1735132817222,7.45718757,196.75,196.71,20.0]
[1735132820622,23.776884,196.74,196.71,20.0]
[1735132820822,0.95318187,196.73,196.71,20.0]
[1735132821515,23.776884,196.72,196.66,12.7117]
[1735132821702,23.776884,196.72,196.69,20.0]
[1735132822018,24.73013803,196.72,196.7,20.0]
[1735132822407,24.73013803,196.72,196.67,9.93873292]
[1735132822918,33.71561692,196.73,196.66,9.93873292]
[1735132823225,23.776884,196.71,196.64,9.93873292]
[1735132826026,23.776884,196.71,196.66,20.0]
[1735132826202,23.776884,196.71,196.66,29.93873292]
[1735132831305,16.44283292,196.75,196.66,29.93873292]
[1735132831504,0.95320201,196.74,196.68,9.93873292]
[1735132831706,6.5041,196.75,196.7,9.93873292]
[1735132832010,7.45721841,196.75,196.7,9.93873292]
[1735132832224,7.45721841,196.75,196.7,20.0]
[1735132834732,6.5041,196.75,196.72,20.0]
[1735132834908,1.5441,196.76,196.72,29.93873292]
[1735132835105,0.95311076,196.79,196.74,9.93873292]
[1735132835321,16.07063292,196.8,196.74,9.93873292]
[1735132836216,6.1319,196.8,196.74,9.93873292]
[1735132836407,6.1319,196.8,196.77,20.0]
[1735132838311,0.95281605,196.79,196.74,9.93873292]
[1735132840330,7.08479019,196.8,196.74,9.93873292]
[1735132852420,23.776884,196.77,196.69,12.7097]
[1735132852629,24.72989649,196.77,196.73,20.0]
[1735132852834,23.776884,196.78,196.73,20.0]
[1735132854823,0.95297851,196.77,196.73,20.0]
[1735132856625,0.95297851,196.77,196.72,20.0]
[1735132856825,0.95297851,196.77,196.73,20.0]
[1735132858049,23.776884,196.76,196.69,12.7097]
[1735132858242,1.6251,196.74,196.69,22.64843292]
[1735132859436,1.6251,196.74,196.71,9.93873292]
[1735132861555,23.776884,196.77,196.71,9.93873292]
[1735132861741,6.1319,196.8,196.78,20.0]
[1735132861936,1.6251,196.83,196.78,29.93873292]
[1735132862148,1.6251,196.83,196.8,9.93873292]
[1735132862949,6.0946,196.85,196.8,9.93873292]
[1735132876462,0.9526122,196.84,196.8,9.93873292]
[1735132876665,6.0946,196.85,196.8,9.93873292]
[1735132879265,0.95260286,196.84,196.8,9.93873292]
[1735132879865,7.04725391,196.85,196.8,9.93873292]
[1735132880565,1.6251,196.87,196.83,20.0]
[1735132884268,1.6251,196.87,196.82,20.0]
[1735132884467,2.57762389,196.87,196.83,20.0]
[1735132886467,23.776884,196.86,196.79,12.7034]
[1735132886653,23.776884,196.84,196.77,9.93873292]
[1735132886846,0.95275748,196.83,196.77,9.93873292]
[1735132887267,23.776884,196.82,196.76,12.7057]
[1735132887516,0.95282213,196.81,196.76,12.7057]
[1735132888578,23.776884,196.82,196.76,12.7057]
[1735132888869,6.5983,196.83,196.77,9.93873292]
[1735132889664,0.95270525,196.82,196.76,20.0]
[1735132889870,0.95270525,196.82,196.77,9.93873292]
[1735132890351,23.776884,196.81,196.77,20.0]
[1735132890673,0.95286942,196.8,196.74,9.93873292]
[1735132891062,23.776884,196.79,196.76,20.0]
[1735132891257,23.776884,196.77,196.71,9.93873292]
[1735132891462,0.95304354,196.76,196.7,9.93873292]
[1735132891863,24.72995357,196.77,196.7,9.93873292]
[1735132892064,24.72995357,196.77,196.71,9.93873292]
[1735132892470,24.72995357,196.77,196.72,9.93873292]
[1735132892977,23.776884,196.77,196.7,9.93873292]
[1735132893150,0.95300461,196.76,196.73,20.0]
[1735132893555,0.95300461,196.76,196.7,9.93873292]
[1735132893755,23.776884,196.75,196.65,13.47470368]
[1735132893953,0.95314981,196.74,196.68,9.93873292]
[1735132894156,23.776884,196.73,196.68,9.93873292]
[1735132894354,0.95324256,196.72,196.66,9.93873292]
[1735132894779,23.776884,196.73,196.66,9.93873292]
[1735132895075,23.776884,196.73,196.65,12.7123]
[1735132895076,23.776884,196.73,196.68,9.93873292]
[1735132897161,23.776884,196.73,196.65,13.47487819]
[1735132897486,23.776884,196.71,196.65,12.7123]
[1735132897670,23.776884,196.71,196.65,22.65103292]
[1735132901375,23.715741,196.71,196.65,22.65103292]
[1735132907091,0.95329379,196.7,196.63,20.0]
[1735132907265,23.776884,196.69,196.64,9.93873292]
[1735132907465,0.95343608,196.68,196.64,9.93873292]
[1735132908794,23.776884,196.67,196.6,13.47823172]
[1735132909088,0.95351619,196.66,196.63,20.0]
[1735132909486,23.776884,196.65,196.6,9.93873292]
[1735132909790,0.95363438,196.64,196.6,9.93873292]
[1735132910577,23.776884,196.65,196.6,9.93873292]
[1735132911167,0.95360219,196.64,196.6,9.93873292]
[1735132911381,24.73050162,196.65,196.6,9.93873292]
[1735132912572,23.776884,196.65,196.6,9.93873292]
[1735132913093,0.95358973,196.64,196.6,9.93873292]
[1735132913492,24.73050645,196.65,196.6,9.93873292]
[1735132914605,23.776884,196.65,196.6,9.93873292]
[1735132916112,24.73049572,196.65,196.6,9.93873292]
[1735132917394,24.73049572,196.65,196.6,20.0]
[1735132917586,34.66922864,196.65,196.57,12.7179]
[1735132917898,34.66922864,196.65,196.57,22.65663292]
[1735132918903,24.73049572,196.65,196.59,9.93873292]
[1735132919213,1.5004,196.66,196.63,9.93873292]
[1735132923104,6.2022,196.69,196.63,9.93873292]
[1735132923987,6.2022,196.69,196.65,9.93873292]
[1735132927005,1.5004,196.7,196.68,20.0]
[1735132928908,1.5004,196.7,196.63,12.7136]
[1735132929115,1.5004,196.7,196.66,20.0]
[1735132929313,0.95340719,196.69,196.66,20.0]
[1735132930313,0.95340719,196.69,196.63,9.93873292]
[1735132930517,23.776884,196.68,196.63,9.93873292]
[1735132930731,0.95350233,196.67,196.63,9.93873292]
[1735132931218,0.95350233,196.67,196.6,12.7161]
[1735132931432,6.491,196.66,196.6,12.7161]
[1735132931607,0.95358343,196.65,196.57,25.434]
[1735132931807,0.95358343,196.65,196.59,9.93873292]
[1735132932003,25.285084,196.64,196.54,0.76283895]
[1735132932201,23.776884,196.62,196.56,9.93873292]
[1735132932515,0.95376663,196.61,196.56,9.93873292]
[1735132932830,23.776884,196.63,196.6,9.93873292]
[1735132933026,1.5082,196.64,196.6,9.93873292]
[1735132933694,6.491,196.66,196.62,9.93873292]
[1735132933900,6.491,196.66,196.59,0.762839]
[1735132933901,1.5082,196.69,196.64,9.93873292]
[1735132934123,1.5082,196.69,196.66,9.93873292]
[1735132934329,1.5082,196.69,196.68,20.0]
[1735132934495,1.5082,196.69,196.66,9.93873292]
[1735132934823,1.5082,196.64,196.56,9.93873292]
[1735132934998,10.89255234,196.63,196.54,9.93873292]
[1735132935532,23.776884,196.62,196.54,9.93873292]
[1735132935818,23.776884,196.6,196.54,9.93873292]
[1735132936001,0.95387513,196.59,196.54,9.93873292]
[1735132936199,23.776884,196.58,196.47,12.724]
[1735132936409,23.776884,196.56,196.52,9.93873292]
[1735132937307,23.776884,196.54,196.49,9.93873292]
[1735132938117,0.95413478,196.53,196.49,9.93873292]
[1735132943627,23.776884,196.54,196.49,9.93873292]
[1735132943925,0.95413674,196.53,196.49,9.93873292]
[1735132944423,0.95416087,196.54,196.49,9.93873292]
[1735132944623,23.776884,196.53,196.49,9.93873292]
[1735132945207,0.95418755,196.52,196.47,9.93873292]
[1735132946106,23.776884,196.53,196.47,9.93873292]
[1735132946506,0.95414711,196.52,196.47,9.93873292]
[1735132947928,23.776884,196.53,196.47,9.93873292]
[1735132950435,0.95418351,196.52,196.47,9.93873292]
[1735132950729,23.776884,196.53,196.47,9.93873292]
[1735132950931,0.95417085,196.52,196.47,20.0]
[1735132951128,0.95417085,196.52,196.48,9.93873292]
[1735132951709,23.776884,196.53,196.48,9.93873292]
[1735132952110,0.95419323,196.52,196.48,9.93873292]
[1735132953216,0.95419323,196.52,196.47,20.0]
[1735132953407,29.931484,196.51,196.47,20.0]
[1735132953611,23.776884,196.49,196.41,2.02778439]
[1735132953830,0.95437489,196.48,196.44,9.93873292]
[1735132954018,23.776884,196.49,196.44,9.93873292]
[1735132954229,0.95437489,196.48,196.44,9.93873292]
[1735132955348,23.776884,196.47,196.43,9.93873292]
[1735132959133,0.95437489,196.46,196.43,9.93873292]
[1735132959643,6.1546,196.51,196.45,9.93873292]
[1735132959826,6.1546,196.51,196.48,9.93873292]
[1735132963232,23.776884,196.54,196.5,29.93873292]
[1735132964044,1.6175,196.55,196.5,29.93873292]
[1735132964632,2.57154548,196.55,196.5,29.93873292]
[1735132964828,1.6175,196.55,196.52,9.93873292]
[1735132965427,1.6175,196.6,196.54,9.93873292]
[1735132965746,1.6175,196.6,196.52,12.7213]
[1735132965747,1.6175,196.6,196.56,9.93873292]
[1735132966122,0.95370889,196.63,196.58,9.93873292]
[1735132967230,0.95372797,196.64,196.58,9.93873292]
[1735132967628,23.776884,196.63,196.58,9.93873292]
[1735132968246,0.95367371,196.63,196.58,9.93873292]
[1735132968637,23.776884,196.62,196.58,9.93873292]
[1735132970361,2.57119136,196.65,196.58,9.93873292]
[1735132970524,23.776884,196.64,196.58,9.93873292]
[1735132970726,0.95368168,196.63,196.58,9.93873292]
[1735132971956,0.95368168,196.63,196.56,9.93873292]
[1735132972132,0.95368168,196.63,196.59,20.0]
[1735132973952,0.95368168,196.63,196.58,20.0]
[1735132974147,0.95368168,196.63,196.59,20.0]
[1735132978562,0.95368168,196.63,196.58,29.93873292]
[1735132980235,2.57119272,196.65,196.62,9.93873292]
[1735132980440,1.6175,196.65,196.63,9.93873292]
[1735132981270,6.6334,196.66,196.63,9.93873292]
[1735132981972,2.45956345,196.7,196.65,9.93873292]
[1735132982948,1.506,196.7,196.67,9.93873292]
[1735132983263,1.506,196.75,196.69,9.93873292]
[1735132983478,0.95314626,196.74,196.69,9.93873292]
[1735132983673,2.45913397,196.75,196.69,9.93873292]
[1735132985047,23.776884,196.74,196.69,9.93873292]
[1735132985276,24.72999659,196.74,196.69,9.93873292]
[1735132987677,23.776884,196.74,196.69,9.93873292]
[1735132988885,0.95316656,196.73,196.69,9.93873292]
[1735132989296,0.95316656,196.73,196.69,20.0]
[1735132989469,23.776884,196.72,196.67,9.93873292]
[1735132989673,1.506,196.75,196.67,9.93873292]
[1735132989870,23.776884,196.73,196.67,9.93873292]
[1735132990076,0.95325503,196.72,196.67,9.93873292]
[1735132994299,23.776884,196.74,196.67,9.93873292]
[1735132994498,23.776884,196.72,196.67,9.93873292]
[1735133000603,2.45920934,196.75,196.69,29.93873292]
[1735133000799,1.506,196.75,196.71,20.0]
[1735133001500,2.45907358,196.75,196.71,20.0]
[1735133005703,1.506,196.75,196.71,20.0]
[1735133006406,1.506,196.75,196.69,9.93873292]
[1735133009301,24.72998079,196.74,196.69,9.93873292]
[1735133009505,24.72998079,196.74,196.67,9.93873292]
[1735133012412,24.72998079,196.74,196.68,20.0]
[1735133012603,24.72998079,196.74,196.67,9.93873292]
[1735133023104,34.66871371,196.74,196.63,20.0]
[1735133023309,9.93873292,196.72,196.66,20.0]
[1735133023505,23.776884,196.7,196.66,20.0]
[1735133023733,0.95342899,196.69,196.66,20.0]
[1735133024150,23.776884,196.7,196.66,20.0]
[1735133024304,0.95333972,196.73,196.68,20.0]
[1735133024623,23.776884,196.72,196.67,9.93873292]
[1735133027674,0.95327041,196.71,196.67,9.93873292]
[1735133028540,23.776884,196.72,196.67,9.93873292]
[1735133028870,0.95325868,196.71,196.67,9.93873292]
[1735133029080,23.776884,196.72,196.67,9.93873292]
[1735133029569,0.95325818,196.71,196.67,9.93873292]
[1735133030272,23.776884,196.72,196.67,9.93873292]
[1735133030642,0.9532745,196.71,196.67,9.93873292]
[1735133031279,23.776884,196.72,196.67,9.93873292]
[1735133032685,0.95326267,196.71,196.66,20.0]
[1735133032981,0.95326267,196.71,196.68,20.0]
[1735133034792,23.776884,196.73,196.68,20.0]
[1735133035004,0.95325352,196.72,196.68,20.0]
[1735133035171,1.506,196.75,196.7,9.93873292]
[1735133036282,2.45904867,196.75,196.7,9.93873292]
[1735133037589,23.776884,196.74,196.7,9.93873292]
[1735133037755,0.95318947,196.73,196.69,12.7103]
[1735133037957,0.95318947,196.73,196.68,9.93873292]
[1735133040386,23.776884,196.74,196.68,9.93873292]
[1735133040598,0.95317054,196.73,196.68,9.93873292]
[1735133042294,24.73006581,196.74,196.68,9.93873292]
[1735133046186,23.776884,196.74,196.7,9.93873292]
[1735133047881,0.95310236,196.73,196.71,20.0]
[1735133048062,23.776884,196.72,196.68,9.93873292]
[1735133048378,0.95328728,196.71,196.7,20.0]
[1735133048785,0.95328728,196.71,196.64,12.7135]
[1735133048786,23.776884,196.7,196.64,12.7135]
[1735133048990,23.776884,196.7,196.65,9.93873292]
[1735133048991,23.776884,196.68,196.65,9.93873292]
[1735133049194,23.776884,196.68,196.63,7.92284843]
[1735133049375,23.776884,196.69,196.63,17.86158135]
[1735133049571,0.95345624,196.68,196.63,17.86158135]
[1735133050710,0.95345624,196.68,196.66,20.0]
[1735133051714,0.95345624,196.68,196.67,20.0]
[1735133052003,23.776884,196.68,196.67,20.0]
[1735133052199,6.2658,196.7,196.67,29.93873292]
[1735133052395,23.776884,196.73,196.67,29.93873292]
[1735133052743,23.776884,196.71,196.67,29.93873292]
[1735133053393,0.95329641,196.7,196.67,29.93873292]
[1735133054003,23.776884,196.72,196.67,29.93873292]
[1735133054173,23.776884,196.7,196.67,29.93873292]
[1735133054498,23.776884,196.7,196.67,20.0]
[1735133057218,0.95336297,196.69,196.67,20.0]
[1735133059716,0.9533888,196.69,196.67,20.0]
[1735133060819,23.776884,196.69,196.67,20.0]
[1735133066313,0.95334866,196.73,196.67,20.0]
[1735133066512,23.776884,196.72,196.67,20.0]
[1735133066826,0.9532869,196.71,196.67,20.0]
[1735133067026,24.73017273,196.72,196.67,29.93873292]
[1735133067212,24.73017273,196.72,196.68,20.0]
[1735133068123,23.776884,196.72,196.68,20.0]
[1735133068730,0.95324556,196.71,196.68,20.0]
[1735133069228,24.73016643,196.72,196.68,20.0]
[1735133071129,24.73016643,196.72,196.67,9.93873292]
[1735133071327,24.73016643,196.72,196.65,20.0]
[1735133071630,24.73016643,196.72,196.65,29.93873292]
[1735133073833,24.73016643,196.72,196.65,20.0]
[1735133074144,23.776884,196.68,196.6,9.93873292]
[1735133074334,23.776884,196.66,196.58,9.93873292]
[1735133074530,23.776884,196.64,196.58,9.93873292]
[1735133074842,0.95370061,196.63,196.58,9.93873292]
[1735133075138,23.776884,196.62,196.57,9.93873292]
[1735133075327,0.95379124,196.61,196.57,9.93873292]
[1735133077139,23.776884,196.6,196.57,9.93873292]
[1735133077342,23.776884,196.58,196.54,78.1403379]
[1735133077538,23.776884,196.58,196.55,9.93873292]
[1735133077723,23.776884,196.58,196.54,78.1403379]
[1735133077724,0.95394882,196.57,196.54,78.1403379]
[1735133078152,0.95394882,196.57,196.53,9.93873292]
[1735133083256,23.776884,196.56,196.53,9.93873292]
[1735133083429,0.95396607,196.57,196.55,9.93873292]
[1735133083633,6.406,196.65,196.58,20.0]
[1735133083842,0.95370787,196.64,196.59,9.93873292]
[1735133090354,0.2438658,196.62,196.59,9.93873292]
[1735133094265,23.776884,196.64,196.59,9.93873292]
[1735133094562,24.73051756,196.64,196.59,9.93873292]
[1735133102886,24.73051756,196.64,196.58,20.0]
[1735133104501,23.776884,196.64,196.59,9.93873292]
[1735133105483,23.776884,196.62,196.57,20.0]
[1735133105785,23.776884,196.6,196.57,29.93873292]
[1735133107662,23.776884,196.58,196.51,12.7217]
[1735133108002,0.95395625,196.57,196.53,9.93873292]
[1735133109272,23.776884,196.56,196.53,9.93873292]
[1735133109480,23.776884,196.54,196.43,30.56]
[1735133109670,0.95414909,196.53,196.45,20.36826]
[1735133109863,0.95414909,196.53,196.49,9.93873292]
[1735133110370,23.776884,196.54,196.49,9.93873292]
[1735133110572,0.95414246,196.53,196.49,9.93873292]
[1735133110782,23.776884,196.54,196.45,0.7633083]
[1735133111201,23.776884,196.54,196.51,9.93873292]
[1735133112694,0.95414246,196.57,196.54,20.0]
[1735133113001,23.776884,196.57,196.54,20.0]
[1735133113485,0.95399055,196.56,196.55,20.0]
[1735133113802,24.73088322,196.57,196.51,9.93873292]
[1735133114795,24.73088322,196.57,196.44,12.7265]
[1735133115104,24.73088322,196.57,196.47,9.93873292]
[1735133115105,23.776884,196.53,196.47,9.93873292]
[1735133115274,23.776884,196.51,196.47,9.93873292]
[1735133115601,0.95430945,196.5,196.47,9.93873292]
[1735133116167,23.776884,196.49,196.47,9.93873292]
[1735133116370,0.95434679,196.48,196.4,12.7287]
[1735133116588,0.95434679,196.48,196.45,9.93873292]
[1735133116787,23.776884,196.47,196.45,9.93873292]
[1735133116991,0.95437489,196.46,196.45,9.93873292]
[1735133117394,0.95437489,196.46,196.44,9.93873292]
[1735133118099,23.776884,196.47,196.44,9.93873292]
[1735133118811,23.776884,196.49,196.46,9.93873292]
[1735133119021,23.776884,196.49,196.4,13.49228053]
[1735133119317,23.776884,196.5,196.47,9.93873292]
[1735133122015,24.73118866,196.5,196.47,9.93873292]
[1735133126623,24.73118866,196.5,196.45,9.93873292]
[1735133128702,23.776884,196.5,196.45,9.93873292]
[1735133129023,24.73117396,196.5,196.45,9.93873292]
[1735133134418,23.776884,196.53,196.49,9.93873292]
[1735133134801,0.95423822,196.55,196.49,9.93873292]
[1735133136220,23.776884,196.54,196.49,9.93873292]
[1735133136537,23.776884,196.52,196.49,9.93873292]
[1735133146370,23.776884,196.52,196.49,20.0]
[1735133146775,23.776884,196.52,196.48,9.93873292]
[1735133146941,23.776884,196.52,196.48,11.25982782]
[1735133148876,23.776884,196.52,196.49,9.93873292]
[1735133149178,23.776884,196.54,196.51,9.93873292]
[1735133152267,23.776884,196.55,196.51,9.93873292]
[1735133156292,0.95409849,196.54,196.51,9.93873292]
[1735133156460,23.776884,196.55,196.51,9.93873292]
[1735133156652,0.95410008,196.54,196.51,9.93873292]
[1735133157274,23.776884,196.55,196.51,9.93873292]
[1735133157476,23.776884,196.53,196.49,20.0]
[1735133157785,23.776884,196.53,196.5,9.93873292]
[1735133158685,0.95412218,196.56,196.5,9.93873292]
[1735133158853,2.53360969,196.6,196.54,9.93873292]
[1735133159179,0.95410969,196.6,196.56,9.93873292]
[1735133159871,0.95383847,196.61,196.56,9.93873292]
[1735133160056,0.95376889,196.64,196.56,9.93873292]
[1735133160782,0.95376889,196.64,196.6,9.93873292]
[1735133160987,0.9536583,196.65,196.62,9.93873292]
[1735133161158,0.9535301,196.67,196.62,9.93873292]
[1735133161555,28.3959373,196.69,196.64,9.93873292]
[1735133161765,0.95348738,196.69,196.64,9.93873292]
[1735133162279,0.95348738,196.69,196.62,9.93873292]
[1735133162982,23.776884,196.68,196.62,9.93873292]
[1735133163183,0.95349281,196.67,196.62,9.93873292]
[1735133165780,9.93873292,196.64,196.56,9.93873292]
[1735133165982,24.73068319,196.63,196.56,9.93873292]
[1735133168583,30.93888319,196.63,196.56,9.93873292]
[1735133170100,32.53288319,196.63,196.56,9.93873292]
[1735133183697,32.53288319,196.63,196.58,9.93873292]
[1735133183903,0.95385373,196.65,196.62,9.93873292]
[1735133184199,0.95361668,196.66,196.54,0.12549]
[1735133184403,0.95361668,196.66,196.62,9.93873292]
[1735133184998,6.97992921,196.67,196.62,9.93873292]
[1735133185501,23.776884,196.66,196.62,20.0]
[1735133185681,0.9536092,196.65,196.62,29.93873292]
[1735133186672,0.9536092,196.65,196.53,12.7207]
[1735133186868,23.776884,196.64,196.58,9.93873292]
[1735133187072,0.95373684,196.63,196.58,9.93873292]
[1735133189608,23.776884,196.62,196.58,9.93873292]
[1735133189782,0.95384193,196.61,196.58,20.0]
[1735133193205,0.95384193,196.61,196.58,29.93873292]
[1735133193819,0.95376818,196.65,196.58,29.93873292]
[1735133194106,23.776884,196.64,196.58,29.93873292]
[1735133194306,0.95371763,196.63,196.58,29.93873292]
[1735133196192,0.95371763,196.63,196.58,9.93873292]
[1735133204310,0.95371763,196.63,196.58,20.0]
[1735133204510,23.776884,196.62,196.56,9.93873292]
[1735133204700,0.95384917,196.61,196.56,9.93873292]
[1735133205420,23.776884,196.6,196.55,20.0]
[1735133205602,0.95393047,196.59,196.54,9.93873292]
[1735133211907,31.223042,196.6,196.56,9.93873292]
[1735133215342,31.223042,196.6,196.54,9.93873292]
[1735133237256,31.223042,196.6,196.49,38.1684]
[1735133237437,31.223042,196.6,196.55,9.93873292]
[1735133241336,7.446158,196.6,196.54,12.7196]
[1735133241659,6.2737,196.65,196.59,9.93873292]
[1735133241855,6.2737,196.65,196.63,9.93873292]
[1735133242551,7.22719684,196.7,196.63,9.93873292]
[1735133242759,7.22719684,196.7,196.65,9.93873292]
[1735133244047,23.776884,196.69,196.64,20.0]
[1735133244236,23.776884,196.67,196.64,20.0]
[1735133244637,6.2737,196.7,196.64,29.93873292]
[1735133244838,0.95340359,196.69,196.64,29.93873292]
[1735133253270,0.95340359,196.69,196.64,9.93873292]
[1735133256079,23.776884,196.68,196.62,9.93873292]
[1735133256372,0.95353568,196.67,196.62,9.93873292]
[1735133263879,23.776884,196.66,196.6,9.93873292]
[1735133264180,0.95368703,196.65,196.6,9.93873292]
[1735133267796,23.776884,196.64,196.6,9.93873292]
[1735133268077,0.95371856,196.63,196.6,9.93873292]
[1735133269374,23.776884,196.65,196.6,9.93873292]
[1735133269581,0.95367164,196.64,196.6,9.93873292]
[1735133271595,0.95362842,196.68,196.62,9.93873292]
[1735133271759,0.95362842,196.68,196.64,9.93873292]
[1735133274283,23.776884,196.68,196.64,9.93873292]
[1735133274501,0.95347609,196.67,196.64,9.93873292]
[1735133274890,24.73036015,196.68,196.64,9.93873292]
[1735133275988,23.776884,196.68,196.64,9.93873292]
[1735133276495,0.95345995,196.67,196.64,9.93873292]
[1735133277091,24.73035888,196.68,196.64,9.93873292]
[1735133278010,0.95347321,196.67,196.64,9.93873292]